fUSD/lending_fUSD_20241225
["ID","MTS","AMOUNT","RATE_DAILY","PERIOD"]
[346595942,1735122638605,-689.4,9.645e-05,2]
[346595944,1735122638614,-737.98,9.645e-05,2]
[346595946,1735122638624,-1086.43,9.645e-05,2]
[346595948,1735122638634,-688.39,9.645e-05,2]
[346595950,1735122638643,-500.0,9.645e-05,2]
[346595952,1735122638652,-500.0,9.645e-05,2]
[346595954,1735122638661,-500.0,9.645e-05,2]
[346595956,1735122638671,-7426.36,9.645e-05,2]
[346595958,1735122638680,-817.4,9.645e-05,2]
[346595960,1735122638690,-1124.14,9.645e-05,2]
[346595962,1735122638701,-777.21,9.645e-05,2]
[346595964,1735122638714,-1547.04,9.645e-05,2]
[346595965,1735122638724,-1121.56,9.645e-05,2]
[346595967,1735122638733,-696.08,9.645e-05,2]
[346595969,1735122638743,-1276.34,9.645e-05,2]
[346595971,1735122638752,-554.63,9.645e-05,2]
[346595973,1735122638762,-2585.62,9.645e-05,2]
[346595975,1735122638771,-1154.0,9.645e-05,2]
[346595977,1735122638780,-1769.61,9.645e-05,2]
[346595979,1735122638789,-2063.88,9.645e-05,2]
[346595981,1735122638798,-2196.35,9.645e-05,2]
[346595983,1735122638807,-1122.02,9.645e-05,2]
[346595985,1735122638817,-1335.5,9.645e-05,2]
[346595987,1735122638826,-2078.51,9.645e-05,2]
[346595989,1735122638836,-609.65,9.645e-05,2]
[346595991,1735122638845,-887.11,9.645e-05,2]
[346595993,1735122638854,-4149.83,9.645e-05,2]
[346595995,1735122638863,-7683.57,9.645e-05,2]
[346595997,1735122638873,-500.0,9.645e-05,2]
[346595999,1735122638882,-1204.48,9.645e-05,2]
[346596001,1735122638892,-751.51,9.645e-05,2]
[346596003,1735122638903,-2348.44,9.645e-05,2]
[346596005,1735122638912,-1153.21,9.645e-05,2]
[346596007,1735122638921,-874.57,9.645e-05,2]
[346596009,1735122638934,-1367.08,9.645e-05,2]
[346596011,1735122638943,-500.0,9.645e-05,2]
[346596014,1735122638955,-10388.79,9.645e-05,2]
[346596015,1735122638964,-892.71,9.645e-05,2]
[346596018,1735122638975,-567.45,9.645e-05,2]
[346596019,1735122638984,-2313.6,9.645e-05,2]
[346596021,1735122638993,-2028.34,9.645e-05,2]
[346596023,1735122639004,-534.63,9.645e-05,2]
[346596025,1735122639014,-1224.53,9.645e-05,2]
[346596027,1735122639023,-3097.67,9.645e-05,2]
[346596029,1735122639032,-1348.39,9.645e-05,2]
[346596031,1735122639040,-818.31,9.645e-05,2]
[346596033,1735122639049,-1097.85,9.645e-05,2]
[346596035,1735122639058,-500.0,9.645e-05,2]
[346596037,1735122639067,-500.0,9.645e-05,2]
[346596039,1735122639076,-1181.45,9.645e-05,2]
[346596041,1735122639085,-8325.26,9.645e-05,2]
[346596043,1735122639095,-3043.17,9.645e-05,2]
[346596045,1735122639104,-500.0,9.645e-05,2]
[346596047,1735122639113,-4114.96,9.645e-05,2]
[346596048,1735122639122,-549.72,9.645e-05,2]
[346596049,1735122639132,-2161.23,9.645e-05,2]
[346596050,1735122639140,-10603.7,9.645e-05,2]
[346596051,1735122639149,-500.0,9.645e-05,2]
[346596052,1735122639158,-4145.39,9.645e-05,2]
[346596053,1735122639167,-3008.4,9.645e-05,2]
[346596054,1735122639176,-1738.65,9.645e-05,2]
[346596055,1735122639185,-4095.82,9.645e-05,2]
[346596056,1735122639194,-1245.94,9.645e-05,2]
[346596057,1735122639205,-1466.45,9.645e-05,2]
[346596058,1735122639214,-1004.48,9.645e-05,2]
[346596059,1735122639223,-4516.19,9.645e-05,2]
[346596060,1735122639233,-2559.2,9.645e-05,2]
[346596061,1735122639242,-500.0,9.645e-05,2]
[346596062,1735122639251,-7522.0,9.645e-05,2]
[346596064,1735122639259,-2205.71,9.645e-05,2]
[346596066,1735122639269,-500.0,9.645e-05,2]
[346596068,1735122639278,-500.0,9.645e-05,2]
[346596070,1735122639287,-853.55,9.645e-05,2]
[346596072,1735122639296,-762.09,9.645e-05,2]
[346596074,1735122639306,-5331.4,9.645e-05,2]
[346596076,1735122639315,-1139.34,9.645e-05,2]
[346596078,1735122639324,-1842.33,9.645e-05,2]
[346596080,1735122639335,-1215.27,9.645e-05,2]
[346596082,1735122639344,-2011.4,9.645e-05,2]
[346596084,1735122639353,-500.0,9.645e-05,2]
[346596086,1735122639362,-3892.79,9.645e-05,2]
[346596088,1735122639371,-620.57,9.645e-05,2]
[346596090,1735122639380,-3228.55,9.645e-05,2]
[346596092,1735122639389,-2242.04,9.645e-05,2]
[346596094,1735122639398,-1642.59,9.645e-05,2]
[346596096,1735122639407,-5256.69,9.645e-05,2]
[346596098,1735122639417,-1349.0,9.645e-05,2]
[346596100,1735122639426,-848.13,9.645e-05,2]
[346596102,1735122639435,-5099.6,9.645e-05,2]
[346596104,1735122639444,-2895.43,9.645e-05,2]
[346596106,1735122639455,-2486.39088474,9.645e-05,2]
[346596121,1735122640002,-1112.42911526,9.645e-05,2]
[346596122,1735122640012,-2003.81147823,9.645e-05,2]
[346596123,1735122640023,-3453.30430591,9.645e-05,2]
[346596156,1735122640560,-21.38421586,9.645e-05,2]
[346596158,1735122640570,-500.0,9.645e-05,2]
[346596159,1735122640579,-71.14578414,9.645e-05,2]
[346596162,1735122640591,-1438.31421586,9.645e-05,2]
[346596164,1735122640601,-706.28578414,9.645e-05,2]
[346596169,1735122640637,-873.51421586,9.645e-05,2]
[346596171,1735122640646,-112.30578414,9.645e-05,2]
[346596183,1735122640757,-9889.48238624,9.645e-05,2]
[346596186,1735122640775,-1623.93291836,9.645e-05,2]
[346596188,1735122640786,-1151.87,9.645e-05,2]
[346596190,1735122640797,-321.609999,9.645e-05,2]
[346596193,1735122640809,-33.25891226,9.645e-05,2]
[346596195,1735122640818,-501.45544654,9.645e-05,2]
[346596227,1735122642905,-2019.50455346,9.645e-05,2]
[346596229,1735122642915,-917.71,9.645e-05,2]
[346596231,1735122642926,-500.0,9.645e-05,2]
[346596233,1735122642938,-1142.56,9.645e-05,2]
[346596235,1735122642947,-1359.48,9.645e-05,2]
[346596237,1735122642959,-1842.49,9.645e-05,2]
[346596239,1735122642970,-1340.34,9.645e-05,2]
[346596241,1735122642981,-8776.01,9.645e-05,2]
[346596243,1735122642991,-500.0,9.645e-05,2]
[346596245,1735122643001,-500.0,9.645e-05,2]
[346596246,1735122643011,-827.29666335,9.645e-05,2]
[346596247,1735122643071,-896.90333665,9.645e-05,2]
[346596248,1735122643081,-811.76,9.645e-05,2]
[346596249,1735122643090,-500.0,9.645e-05,2]
[346596250,1735122643100,-500.0,9.645e-05,2]
[346596251,1735122643109,-500.0,9.645e-05,2]
[346596252,1735122643119,-500.0,9.645e-05,2]
[346596253,1735122643128,-500.0,9.645e-05,2]
[346596254,1735122643138,-666.48,9.645e-05,2]
[346596255,1735122643147,-1016.21,9.645e-05,2]
[346596256,1735122643156,-1219.45,9.645e-05,2]
[346596257,1735122643165,-656.43,9.645e-05,2]
[346596258,1735122643174,-1925.38,9.645e-05,2]
[346596259,1735122643184,-500.0,9.645e-05,2]
[346596260,1735122643193,-1957.53,9.645e-05,2]
[346596261,1735122643202,-631.17550691,9.645e-05,2]
[346596262,1735122643230,-673.49449309,9.645e-05,2]
[346596263,1735122643240,-1144.07,9.645e-05,2]
[346596264,1735122643249,-583.46,9.645e-05,2]
[346596265,1735122643259,-1042.71,9.645e-05,2]
[346596266,1735122643268,-674.34,9.645e-05,2]
[346596267,1735122643277,-500.0,9.645e-05,2]
[346596268,1735122643287,-301.37550691,9.645e-05,2]
[346596269,1735122643337,-198.62449309,9.645e-05,2]
[346596270,1735122643347,-500.0,9.646e-05,2]
[346596271,1735122643357,-500.0,9.646e-05,2]
[346596272,1735122643366,-500.0,9.646e-05,2]
[346596273,1735122643375,-500.0,9.646e-05,2]
[346596274,1735122643385,-500.0,9.646e-05,2]
[346596275,1735122643394,-500.0,9.646e-05,2]
[346596276,1735122643403,-459.66368132,9.646e-05,2]
[346596277,1735122643415,-40.33631868,9.646e-05,2]
[346596278,1735122643424,-577.43,9.646e-05,2]
[346596279,1735122643433,-500.0,9.646e-05,2]
[346596280,1735122643443,-294.55688121,9.646e-05,2]
[346596281,1735122643455,-205.44311879,9.646e-05,2]
[346596282,1735122643464,-500.0,9.646e-05,2]
[346596283,1735122643474,-500.0,9.646e-05,2]
[346596284,1735122643483,-500.0,9.646e-05,2]
[346596285,1735122643493,-500.0,9.646e-05,2]
[346596286,1735122643504,-500.0,9.646e-05,2]
[346596287,1735122643513,-500.0,9.646e-05,2]
[346596288,1735122643523,-500.0,9.646e-05,2]
[346596289,1735122643532,-500.0,9.646e-05,2]
[346596290,1735122643541,-500.0,9.646e-05,2]
[346596291,1735122643551,-506.94,9.646e-05,2]
[346596292,1735122643560,-500.0,9.646e-05,2]
[346596293,1735122643570,-500.0,9.646e-05,2]
[346596294,1735122643579,-500.0,9.646e-05,2]
[346596295,1735122643588,-500.0,9.646e-05,2]
[346596296,1735122643598,-500.0,9.646e-05,2]
[346596297,1735122643607,-500.0,9.646e-05,2]
[346596298,1735122643616,-500.0,9.646e-05,2]
[346596299,1735122643625,-500.0,9.646e-05,2]
[346596300,1735122643635,-500.0,9.646e-05,2]
[346596301,1735122643644,-500.0,9.646e-05,2]
[346596302,1735122643653,-500.0,9.646e-05,2]
[346596303,1735122643662,-506.8720038,9.646e-05,2]
[346596304,1735122643671,-500.0,9.646e-05,2]
[346596305,1735122643681,-500.0,9.646e-05,2]
[346596306,1735122643690,-530.19138025,9.646e-05,2]
[346596307,1735122643699,-651.4,9.646e-05,2]
[346596308,1735122643709,-511.78,9.646e-05,2]
[346596309,1735122643718,-363.35819324,9.646e-05,2]
[346596310,1735122643728,-500.0,9.646e-05,2]
[346596311,1735122643737,-500.0,9.646e-05,2]
[346596312,1735122643746,-500.0,9.646e-05,2]
[346596313,1735122643756,-500.0,9.646e-05,2]
[346596314,1735122643765,-511.75872828,9.646e-05,2]
[346596315,1735122643775,-500.0,9.646e-05,2]
[346596316,1735122643784,-500.0,9.646e-05,2]
[346596317,1735122643793,-500.0,9.646e-05,2]
[346596318,1735122643803,-500.0,9.646e-05,2]
[346596319,1735122643812,-500.0,9.646e-05,2]
[346596320,1735122643822,-500.0,9.646e-05,2]
[346596321,1735122643831,-500.0,9.646e-05,2]
[346596322,1735122643840,-500.0,9.646e-05,2]
[346596323,1735122643850,-500.0,9.646e-05,2]
[346596324,1735122643860,-500.0,9.646e-05,2]
[346596325,1735122643869,-949.91,9.646e-05,2]
[346596326,1735122643878,-500.0,9.646e-05,2]
[346596327,1735122643888,-500.0,9.646e-05,2]
[346596328,1735122643897,-500.0,9.646e-05,2]
[346596329,1735122643907,-1178.52,9.646e-05,2]
[346596330,1735122643917,-666.41,9.646e-05,2]
[346596331,1735122643929,-500.0,9.646e-05,2]
[346596332,1735122643939,-500.0,9.646e-05,2]
[346596333,1735122643948,-500.0,9.646e-05,2]
[346596334,1735122643958,-500.0,9.646e-05,2]
[346596335,1735122643969,-500.0,9.646e-05,2]
[346596336,1735122643979,-478.28248084,9.646e-05,2]
[346596337,1735122643988,-1154.21,9.646e-05,2]
[346596338,1735122643998,-500.0,9.646e-05,2]
[346596339,1735122644009,-2737.82,9.646e-05,2]
[346596340,1735122644019,-500.0,9.646e-05,2]
[346596341,1735122644028,-914.31,9.646e-05,2]
[346596342,1735122644037,-500.0,9.646e-05,2]
[346596343,1735122644047,-500.0,9.646e-05,2]
[346596344,1735122644056,-500.0,9.646e-05,2]
[346596345,1735122644065,-500.0,9.646e-05,2]
[346596346,1735122644075,-500.0,9.646e-05,2]
[346596347,1735122644085,-500.0,9.646e-05,2]
[346596348,1735122644095,-500.0,9.646e-05,2]
[346596349,1735122644104,-500.0,9.646e-05,2]
[346596350,1735122644113,-546.08970658,9.646e-05,2]
[346596351,1735122644122,-500.0,9.646e-05,2]
[346596352,1735122644131,-1125.62,9.646e-05,2]
[346596353,1735122644140,-812.21,9.646e-05,2]
[346596354,1735122644149,-615.68,9.646e-05,2]
[346596355,1735122644158,-500.0,9.646e-05,2]
[346596356,1735122644167,-500.0,9.646e-05,2]
[346596357,1735122644177,-459.23333334,9.646e-05,2]
[346596358,1735122644186,-500.0,9.646e-05,2]
[346596359,1735122644196,-500.0,9.646e-05,2]
[346596360,1735122644207,-500.0,9.646e-05,2]
[346596361,1735122644216,-500.0,9.646e-05,2]
[346596362,1735122644225,-500.0,9.646e-05,2]
[346596363,1735122644234,-155.33262123,9.646e-05,2]
[346596364,1735122644243,-500.0,9.646e-05,2]
[346596365,1735122644253,-1566.51,9.646e-05,2]
[346596366,1735122644262,-500.0,9.646e-05,2]
[346596367,1735122644271,-541.75792761,9.646e-05,2]
[346596368,1735122644280,-1606.8,9.646e-05,2]
[346596369,1735122644289,-500.0,9.646e-05,2]
[346596370,1735122644299,-650.36,9.646e-05,2]
[346596371,1735122644308,-500.0,9.646e-05,2]
[346596372,1735122644318,-500.0,9.646e-05,2]
[346596373,1735122644327,-560.18,9.646e-05,2]
[346596374,1735122644336,-500.0,9.646e-05,2]
[346596375,1735122644347,-736.94,9.646e-05,2]
[346596376,1735122644356,-500.0,9.646e-05,2]
[346596377,1735122644365,-502.80661379,9.646e-05,2]
[346596378,1735122644375,-729.06,9.646e-05,2]
[346596379,1735122644384,-500.0,9.646e-05,2]
[346596380,1735122644393,-500.0,9.646e-05,2]
[346596381,1735122644402,-500.0,9.646e-05,2]
[346596382,1735122644411,-500.0,9.646e-05,2]
[346596383,1735122644420,-524.84,9.646e-05,2]
[346596384,1735122644429,-1138.09,9.646e-05,2]
[346596385,1735122644438,-500.0,9.646e-05,2]
[346596386,1735122644447,-500.0,9.646e-05,2]
[346596387,1735122644457,-163.14344836,9.646e-05,2]
[346596388,1735122644467,-500.0,9.646e-05,2]
[346596389,1735122644476,-1749.91,9.646e-05,2]
[346596390,1735122644486,-658.58,9.646e-05,2]
[346596391,1735122644495,-1413.26,9.646e-05,2]
[346596392,1735122644504,-500.0,9.646e-05,2]
[346596393,1735122644513,-500.0,9.646e-05,2]
[346596394,1735122644522,-500.0,9.646e-05,2]
[346596395,1735122644531,-500.0,9.646e-05,2]
[346596396,1735122644541,-500.0,9.646e-05,2]
[346596397,1735122644550,-345.89851167,9.646e-05,2]
[346596398,1735122644560,-500.0,9.646e-05,2]
[346596399,1735122644569,-753.21,9.646e-05,2]
[346596400,1735122644579,-694.68,9.646e-05,2]
[346596401,1735122644588,-500.0,9.646e-05,2]
[346596402,1735122644598,-500.0,9.646e-05,2]
[346596403,1735122644607,-500.0,9.646e-05,2]
[346596404,1735122644616,-500.0,9.646e-05,2]
[346596405,1735122644626,-500.0,9.646e-05,2]
[346596406,1735122644635,-565.76324521,9.646e-05,2]
[346596407,1735122644645,-500.0,9.646e-05,2]
[346596408,1735122644654,-500.0,9.646e-05,2]
[346596409,1735122644663,-500.0,9.646e-05,2]
[346596410,1735122644672,-481.2016855,9.646e-05,2]
[346596411,1735122644681,-500.0,9.646e-05,2]
[346596412,1735122644690,-1034.04,9.646e-05,2]
[346596413,1735122644700,-500.0,9.646e-05,2]
[346596414,1735122644710,-500.0,9.646e-05,2]
[346596415,1735122644720,-500.0,9.646e-05,2]
[346596416,1735122644730,-500.0,9.646e-05,2]
[346596417,1735122644739,-500.0,9.646e-05,2]
[346596418,1735122644748,-500.0,9.646e-05,2]
[346596419,1735122644757,-500.0,9.646e-05,2]
[346596420,1735122644767,-500.0,9.646e-05,2]
[346596421,1735122644776,-500.0,9.646e-05,2]
[346596422,1735122644785,-508.07851054,9.646e-05,2]
[346596423,1735122644794,-561.39,9.646e-05,2]
[346596424,1735122644803,-500.0,9.646e-05,2]
[346596425,1735122644812,-500.0,9.646e-05,2]
[346596426,1735122644821,-802.42,9.646e-05,2]
[346596427,1735122644830,-807.34,9.646e-05,2]
[346596428,1735122644839,-500.0,9.646e-05,2]
[346596429,1735122644849,-524.39,9.646e-05,2]
[346596430,1735122644858,-552.29,9.646e-05,2]
[346596431,1735122644867,-500.0,9.646e-05,2]
[346596432,1735122644877,-1309.01,9.646e-05,2]
[346596433,1735122644886,-500.0,9.646e-05,2]
[346596434,1735122644895,-500.0,9.646e-05,2]
[346596435,1735122644905,-500.0,9.646e-05,2]
[346596436,1735122644914,-515.03,9.646e-05,2]
[346596437,1735122644928,-581.06,9.646e-05,2]
[346596438,1735122644937,-1260.37,9.646e-05,2]
[346596439,1735122644947,-500.0,9.646e-05,2]
[346596440,1735122644957,-500.0,9.646e-05,2]
[346596441,1735122644967,-500.0,9.646e-05,2]
[346596442,1735122644977,-500.0,9.646e-05,2]
[346596443,1735122644986,-500.0,9.646e-05,2]
[346596444,1735122644997,-500.0,9.646e-05,2]
[346596445,1735122645006,-513.95,9.646e-05,2]
[346596446,1735122645016,-847.47,9.646e-05,2]
[346596447,1735122645025,-500.0,9.646e-05,2]
[346596448,1735122645035,-500.0,9.646e-05,2]
[346596449,1735122645045,-500.0,9.646e-05,2]
[346596450,1735122645054,-1035.37,9.646e-05,2]
[346596451,1735122645063,-500.0,9.646e-05,2]
[346596452,1735122645072,-500.0,9.646e-05,2]
[346596453,1735122645082,-758.57,9.646e-05,2]
[346596454,1735122645091,-500.0,9.646e-05,2]
[346596455,1735122645100,-1016.33,9.646e-05,2]
[346596456,1735122645110,-500.0,9.646e-05,2]
[346596457,1735122645120,-500.0,9.646e-05,2]
[346596458,1735122645129,-500.0,9.646e-05,2]
[346596459,1735122645138,-1194.49,9.646e-05,2]
[346596460,1735122645147,-534.05,9.646e-05,2]
[346596461,1735122645156,-500.0,9.646e-05,2]
[346596462,1735122645165,-500.0,9.646e-05,2]
[346596463,1735122645175,-500.0,9.646e-05,2]
[346596464,1735122645184,-1230.29,9.646e-05,2]
[346596465,1735122645193,-500.0,9.646e-05,2]
[346596466,1735122645202,-667.67,9.646e-05,2]
[346596467,1735122645212,-581.45,9.646e-05,2]
[346596468,1735122645221,-774.53,9.646e-05,2]
[346596469,1735122645230,-500.0,9.646e-05,2]
[346596470,1735122645239,-500.0,9.646e-05,2]
[346596471,1735122645248,-500.0,9.646e-05,2]
[346596472,1735122645257,-1084.93,9.646e-05,2]
[346596473,1735122645266,-621.5122548,9.646e-05,2]
[346596474,1735122645277,-500.0,9.646e-05,2]
[346596475,1735122645287,-2476.85,9.646e-05,2]
[346596476,1735122645295,-500.0,9.646e-05,2]
[346596477,1735122645305,-500.0,9.646e-05,2]
[346596478,1735122645314,-1059.17,9.646e-05,2]
[346596479,1735122645325,-500.0,9.646e-05,2]
[346596480,1735122645338,-500.0,9.646e-05,2]
[346596481,1735122645350,-2434.68,9.646e-05,2]
[346596482,1735122645360,-500.0,9.646e-05,2]
[346596483,1735122645369,-500.0,9.646e-05,2]
[346596484,1735122645379,-783.77,9.646e-05,2]
[346596485,1735122645387,-500.0,9.646e-05,2]
[346596486,1735122645396,-500.0,9.646e-05,2]
[346596487,1735122645406,-1046.81,9.646e-05,2]
[346596488,1735122645415,-500.0,9.646e-05,2]
[346596489,1735122645423,-500.0,9.646e-05,2]
[346596490,1735122645432,-500.0,9.646e-05,2]
[346596491,1735122645441,-500.0,9.646e-05,2]
[346596492,1735122645450,-500.0,9.646e-05,2]
[346596493,1735122645459,-608.9,9.646e-05,2]
[346596494,1735122645469,-1125.7,9.646e-05,2]
[346596495,1735122645478,-500.0,9.646e-05,2]
[346596496,1735122645487,-1277.1,9.646e-05,2]
[346596497,1735122645496,-500.0,9.646e-05,2]
[346596498,1735122645505,-500.0,9.646e-05,2]
[346596499,1735122645514,-859.25,9.646e-05,2]
[346596500,1735122645524,-900.57,9.646e-05,2]
[346596501,1735122645533,-500.0,9.646e-05,2]
[346596502,1735122645542,-500.0,9.646e-05,2]
[346596503,1735122645552,-1963.01,9.646e-05,2]
[346596504,1735122645561,-1185.99,9.646e-05,2]
[346596505,1735122645570,-1162.61,9.646e-05,2]
[346596506,1735122645579,-500.0,9.646e-05,2]
[346596507,1735122645588,-440.68646204,9.646e-05,2]
[346596508,1735122645598,-473.79805435,9.646e-05,2]
[346596509,1735122645607,-1331.82,9.646e-05,2]
[346596510,1735122645617,-500.0,9.646e-05,2]
[346596511,1735122645627,-500.0,9.646e-05,2]
[346596512,1735122645636,-500.0,9.646e-05,2]
[346596513,1735122645645,-1817.08,9.646e-05,2]
[346596514,1735122645654,-597.53,9.646e-05,2]
[346596515,1735122645664,-145.93206692,9.646e-05,2]
[346596516,1735122645696,-233.94751106,9.646e-05,2]
[346596517,1735122645708,-500.0,9.646e-05,2]
[346596519,1735122645717,-1855.79,9.646e-05,2]
[346596520,1735122645727,-1173.16,9.646e-05,2]
[346596522,1735122645736,-500.0,9.646e-05,2]
[346596524,1735122645746,-1820.23,9.646e-05,2]
[346596525,1735122645755,-500.0,9.646e-05,2]
[346596526,1735122645764,-1429.43,9.646e-05,2]
[346596527,1735122645773,-500.0,9.646e-05,2]
[346596528,1735122645782,-1581.16,9.646e-05,2]
[346596529,1735122645791,-500.0,9.646e-05,2]
[346596530,1735122645800,-508.02,9.646e-05,2]
[346596531,1735122645810,-702.89,9.646e-05,2]
[346596532,1735122645819,-500.0,9.646e-05,2]
[346596533,1735122645828,-1910.46,9.646e-05,2]
[346596534,1735122645837,-1286.86,9.646e-05,2]
[346596535,1735122645846,-500.0,9.646e-05,2]
[346596536,1735122645855,-1016.39,9.646e-05,2]
[346596537,1735122645865,-500.0,9.646e-05,2]
[346596538,1735122645873,-1485.68,9.646e-05,2]
[346596539,1735122645882,-500.0,9.646e-05,2]
[346596540,1735122645891,-820.07,9.646e-05,2]
[346596541,1735122645900,-500.0,9.646e-05,2]
[346596542,1735122645909,-2349.86,9.646e-05,2]
[346596543,1735122645918,-500.0,9.646e-05,2]
[346596544,1735122645930,-500.0,9.646e-05,2]
[346596545,1735122645939,-659.72,9.646e-05,2]
[346596546,1735122645948,-1404.26,9.646e-05,2]
[346596547,1735122645957,-500.0,9.646e-05,2]
[346596548,1735122645967,-1087.97,9.646e-05,2]
[346596549,1735122645976,-500.0,9.646e-05,2]
[346596550,1735122645986,-495.32889436,9.646e-05,2]
[346596551,1735122645996,-500.0,9.646e-05,2]
[346596552,1735122646006,-500.0,9.646e-05,2]
[346596553,1735122646015,-661.11,9.646e-05,2]
[346596554,1735122646024,-500.0,9.646e-05,2]
[346596555,1735122646033,-681.09,9.646e-05,2]
[346596556,1735122646043,-1088.38,9.646e-05,2]
[346596557,1735122646053,-1003.14,9.646e-05,2]
[346596558,1735122646062,-500.0,9.646e-05,2]
[346596559,1735122646071,-500.0,9.646e-05,2]
[346596560,1735122646080,-1050.32,9.646e-05,2]
[346596561,1735122646090,-500.0,9.646e-05,2]
[346596562,1735122646100,-2613.94,9.646e-05,2]
[346596563,1735122646109,-1078.46,9.646e-05,2]
[346596564,1735122646119,-605.39,9.646e-05,2]
[346596565,1735122646129,-500.0,9.646e-05,2]
[346596566,1735122646138,-997.9,9.646e-05,2]
[346596567,1735122646147,-1337.26,9.646e-05,2]
[346596568,1735122646157,-2792.61,9.646e-05,2]
[346596569,1735122646166,-1538.74,9.646e-05,2]
[346596570,1735122646175,-1521.24,9.646e-05,2]
[346596571,1735122646185,-2876.98,9.646e-05,2]
[346596572,1735122646194,-553.38,9.646e-05,2]
[346596573,1735122646204,-2422.83,9.646e-05,2]
[346596574,1735122646215,-1189.89,9.646e-05,2]
[346596575,1735122646224,-6565.78,9.646e-05,2]
[346596576,1735122646234,-532.67,9.646e-05,2]
[346596577,1735122646244,-2073.95,9.646e-05,2]
[346596578,1735122646253,-500.0,9.646e-05,2]
[346596579,1735122646263,-1075.81,9.646e-05,2]
[346596580,1735122646272,-3113.21,9.646e-05,2]
[346596581,1735122646281,-955.47,9.646e-05,2]
[346596582,1735122646291,-1190.73,9.646e-05,2]
[346596584,1735122646300,-1122.9,9.646e-05,2]
[346596586,1735122646309,-5309.45,9.646e-05,2]
[346596588,1735122646318,-807.1,9.646e-05,2]
[346596590,1735122646328,-1618.5,9.646e-05,2]
[346596592,1735122646337,-500.0,9.646e-05,2]
[346596593,1735122646346,-3669.34,9.646e-05,2]
[346596594,1735122646355,-500.0,9.646e-05,2]
[346596595,1735122646364,-1993.58,9.646e-05,2]
[346596596,1735122646373,-500.0,9.646e-05,2]
[346596597,1735122646383,-545.43,9.646e-05,2]
[346596598,1735122646392,-500.0,9.646e-05,2]
[346596599,1735122646401,-6923.81,9.646e-05,2]
[346596600,1735122646411,-2737.51,9.646e-05,2]
[346596601,1735122646420,-7183.25,9.646e-05,2]
[346596602,1735122646429,-472.46732669,9.646e-05,2]
[346596603,1735122646439,-500.0,9.646e-05,2]
[346596604,1735122646448,-500.0,9.646e-05,2]
[346596605,1735122646458,-42506.29,9.646e-05,2]
[346596606,1735122646467,-500.0,9.646e-05,2]
[346596611,1735122646691,-624.45,9.646e-05,2]
[346596612,1735122646703,-634.92,9.646e-05,2]
[346596613,1735122646714,-5826.92,9.646e-05,2]
[346596614,1735122646724,-500.0,9.646e-05,2]
[346596615,1735122646733,-500.0,9.646e-05,2]
[346596616,1735122646743,-500.0,9.646e-05,2]
[346596617,1735122646752,-1473.31,9.646e-05,2]
[346596618,1735122646762,-3173.96,9.646e-05,2]
[346596619,1735122646773,-500.0,9.646e-05,2]
[346596620,1735122646782,-923.33,9.646e-05,2]
[346596621,1735122646792,-500.0,9.646e-05,2]
[346596622,1735122646802,-500.0,9.646e-05,2]
[346596623,1735122646811,-500.0,9.646e-05,2]
[346596624,1735122646820,-1240.88,9.646e-05,2]
[346596625,1735122646830,-2102.12,9.646e-05,2]
[346596626,1735122646839,-740.9,9.646e-05,2]
[346596627,1735122646849,-500.0,9.646e-05,2]
[346596628,1735122646858,-500.0,9.646e-05,2]
[346596629,1735122646867,-500.0,9.646e-05,2]
[346596630,1735122646878,-500.0,9.646e-05,2]
[346596631,1735122646887,-1474.85,9.646e-05,2]
[346596632,1735122646897,-4489.73,9.646e-05,2]
[346596633,1735122646907,-500.0,9.646e-05,2]
[346596634,1735122646916,-500.0,9.646e-05,2]
[346596635,1735122646926,-1403.15,9.646e-05,2]
[346596636,1735122646937,-40526.32,9.646e-05,2]
[346596637,1735122646946,-800.48,9.646e-05,2]
[346596638,1735122646957,-2644.01,9.646e-05,2]
[346596639,1735122646968,-1253.41,9.646e-05,2]
[346596640,1735122646978,-621.53,9.646e-05,2]